bitfinex/quotes_BTCUSD_20220201
["timestamp","ask_amount","ask_price","bid_price","bid_amount"]
[1643749969945,0.186859,38666.0,38665.0,0.00129412]
[1643749970347,0.77552,38671.0,38665.0,0.00129412]
[1643749970348,0.186859,38667.0,38665.0,0.00129412]
[1643749970549,0.186859,38669.0,38665.0,0.00129412]
[1643749970751,0.2116581,38668.0,38660.0,0.02168376]
[1643749971054,0.2116581,38668.0,38664.0,0.00129414]
[1643749971055,0.186859,38667.0,38664.0,0.00129414]
[1643749971252,0.22344349,38666.0,38664.0,0.00129414]
[1643749971452,0.536859,38665.0,38664.0,0.00129414]
[1643749971654,0.39849594,38665.0,38664.0,0.00129414]
[1643749972054,0.39849594,38665.0,38660.0,0.27445612]
[1643749972307,0.09803517,38664.0,38663.0,0.00129419]
[1643749972505,0.28489417,38664.0,38663.0,0.00129419]
[1643749973205,0.28489417,38664.0,38660.0,0.01839466]
[1643749973505,0.28489417,38664.0,38662.0,0.00129422]
[1643749973707,0.186859,38664.0,38662.0,0.11593474]
[1643749973908,0.1,38666.0,38662.0,0.11593474]
[1643749973909,0.186859,38665.0,38662.0,0.11593474]
[1643749974307,0.186859,38666.0,38662.0,0.11464052]
[1643749974507,0.186859,38666.0,38662.0,0.11593474]
[1643749975106,0.49203791,38666.0,38662.0,0.00129422]
[1643749975511,0.09991106,38665.0,38658.0,0.0257195]
[1643749975710,0.186859,38664.0,38662.0,0.00129421]
[1643749976744,0.186859,38664.0,38658.0,0.0257195]
[1643749976945,0.186859,38664.0,38661.0,0.00129424]
[1643749977544,0.19849368,38663.0,38661.0,0.00129424]
[1643749977755,0.186859,38662.0,38661.0,0.00129424]
[1643749977951,0.186859,38662.0,38658.0,0.0257195]
[1643749978145,0.286859,38662.0,38660.0,0.11657]
[1643749978745,0.186859,38662.0,38660.0,0.11657]
[1643749978945,0.34776429,38669.0,38660.0,0.11657]
[1643749979148,0.286859,38668.0,38660.0,0.11527571]
[1643749979347,0.286859,38668.0,38663.0,0.00129419]
[1643749979348,0.25813509,38667.0,38663.0,0.00129419]
[1643749979549,0.10003255,38665.0,38663.0,0.00129419]
[1643749979790,0.404524,38664.0,38663.0,0.00129419]
[1643749979993,0.454524,38664.0,38663.0,0.00129419]
[1643749980195,0.404524,38664.0,38663.0,0.00129419]
[1643749980390,0.186859,38664.0,38660.0,0.11527571]
[1643749980594,0.1,38666.0,38662.0,0.00129422]
[1643749980792,0.77552,38671.0,38663.0,0.18272289]
[1643749980995,0.77552,38671.0,38670.0,0.4798113]
[1643749981195,0.77552,38671.0,38670.0,0.10225216]
[1643749981690,0.962379,38671.0,38670.0,0.10225216]
[1643749982091,0.77552,38671.0,38670.0,0.10225216]
[1643749982491,0.962379,38671.0,38670.0,0.10225216]
[1643749982696,0.242733,38680.0,38670.0,0.10225216]
[1643749982697,0.32697844,38681.0,38670.0,1.45395216]
[1643749982900,0.00744056,38685.0,38671.0,0.54582452]
[1643749982901,0.32697844,38685.0,38671.0,0.54582452]
[1643749983100,0.9580622,38694.0,38683.0,0.21803852]
[1643749983101,0.32697844,38688.0,38683.0,0.21803852]
[1643749983293,0.32697844,38689.0,38683.0,0.21803852]
[1643749983544,0.32697844,38691.0,38690.0,0.12096993]
[1643749983750,0.186859,38691.0,38689.0,0.0967111]
[1643749984146,0.186859,38692.0,38689.0,0.0967111]
[1643749985545,0.186859,38693.0,38689.0,0.0967111]
[1643749986147,0.186859,38693.0,38685.0,0.0196941]
[1643749986549,0.2515,38693.0,38685.0,0.0196941]
[1643749986949,0.72847844,38693.0,38685.0,0.0196941]
[1643749987204,0.09074563,38688.0,38685.0,0.0196941]
[1643749987400,0.186859,38687.0,38685.0,0.0196941]
[1643749987600,0.186859,38687.0,38682.0,0.0517]
[1643749987899,0.05,38687.0,38682.0,0.0517]
[1643749988099,0.24074563,38688.0,38682.0,0.0517]
[1643749988700,0.14074563,38688.0,38682.0,0.0517]
[1643749989300,0.14074563,38688.0,38684.0,0.12258934]
[1643749989500,0.186859,38687.0,38684.0,0.12258934]
[1643749989700,0.14074563,38688.0,38684.0,0.12258934]
[1643749989900,0.1,38687.0,38684.0,0.12258934]
[1643749991144,0.186859,38686.0,38684.0,0.12258934]
[1643749991345,0.1,38687.0,38682.0,0.0517]
[1643749992146,0.1,38687.0,38681.0,0.01914557]
[1643749992347,0.1,38687.0,38681.0,0.13269296]
[1643749992545,0.14074563,38688.0,38681.0,0.13269296]
[1643749993144,0.14074563,38688.0,38681.0,0.12769296]
[1643749994145,0.09074563,38688.0,38681.0,0.12769296]
[1643749994546,0.09825416,38682.0,38681.0,0.01414557]
[1643749995601,0.09825416,38682.0,38679.0,0.064644]
[1643749998304,0.064645,38690.0,38679.0,0.064644]
[1643749999346,0.064645,38690.0,38679.0,0.08375563]
[1643749999944,0.06455916,38690.0,38679.0,0.08375563]
[1643750000345,0.06455916,38690.0,38679.0,0.01911163]
[1643750000546,0.186859,38689.0,38679.0,0.01911163]
[1643750000746,0.236859,38689.0,38679.0,0.01911163]
[1643750001146,0.336859,38689.0,38679.0,0.01911163]
[1643750001547,0.336859,38689.0,38678.0,0.00129367]
[1643750001747,0.08754258,38682.0,38678.0,0.00129367]
[1643750001948,0.08754258,38682.0,38677.0,0.064648]
[1643750002206,0.08754258,38682.0,38678.0,0.00129367]
[1643750003203,0.08754258,38682.0,38677.0,0.064648]
[1643750003405,0.08754258,38682.0,38678.0,0.00129367]
[1643750004404,0.08754258,38682.0,38677.0,0.064648]
[1643750004606,0.08754258,38682.0,38678.0,0.00129367]
[1643750005606,0.08754258,38682.0,38677.0,0.064648]
[1643750005806,0.08754258,38682.0,38678.0,0.00129367]
[1643750006050,0.08754258,38682.0,38681.0,0.4122696]
[1643750006450,0.08754258,38682.0,38681.0,0.1122696]
[1643750006851,0.27440158,38682.0,38681.0,0.1122696]
[1643750009457,0.32440158,38682.0,38678.0,0.00129367]
[1643750009699,0.08754258,38682.0,38678.0,0.00129367]
[1643750009894,0.13754258,38682.0,38678.0,0.00129367]
[1643750010494,0.13754258,38682.0,38680.0,0.11394737]
[1643750010695,0.08754258,38682.0,38680.0,0.11394737]
[1643750011899,0.13754258,38682.0,38680.0,0.11394737]
[1643750016052,0.08754258,38682.0,38680.0,0.11394737]
[1643750017496,0.06465,38687.0,38680.0,0.11394737]
[1643750017694,0.186859,38686.0,38680.0,0.11394737]
[1643750017894,0.186859,38689.0,38680.0,0.11394737]
[1643750018096,0.05,38686.0,38680.0,0.11394737]
[1643750018295,0.214644,38690.0,38680.0,0.34060837]
[1643750018296,0.186859,38685.0,38680.0,0.34060837]
[1643750018496,0.29291966,38693.0,38685.0,0.14012139]
[1643750018697,0.186859,38692.0,38685.0,0.07548539]
[1643750018895,0.186859,38694.0,38685.0,0.07548539]
[1643750019095,0.186859,38694.0,38682.0,0.22378252]
[1643750019299,0.186859,38694.0,38688.0,0.12111084]
[1643750019704,0.064643,38693.0,38682.0,0.01962144]
[1643750019900,0.186859,38692.0,38682.0,0.01962144]
[1643750020099,0.186859,38694.0,38682.0,0.01962144]
[1643750020300,0.0980456,38686.0,38682.0,0.08426244]
[1643750020499,0.05,38694.0,38682.0,0.08426244]
[1643750020700,0.10130487,38695.0,38685.0,0.09438555]
[1643750020701,0.186859,38693.0,38685.0,0.09438555]
[1643750020945,0.05,38693.0,38685.0,0.09438555]
[1643750021145,0.186859,38692.0,38685.0,0.09438555]
[1643750021343,0.05,38692.0,38685.0,0.09438555]
[1643750021542,0.186859,38691.0,38685.0,0.09438555]
[1643750021748,0.186859,38691.0,38686.0,0.27510223]
[1643750021944,0.39308697,38695.0,38686.0,0.26670554]
[1643750021945,0.0659419,38695.0,38686.0,0.26670554]
[1643750022144,0.186859,38694.0,38686.0,0.26670554]
[1643750022350,0.32714507,38697.0,38686.0,0.26670554]
[1643750022544,0.186859,38696.0,38686.0,0.26670554]
[1643750022747,0.08627754,38690.0,38686.0,0.26670554]
[1643750022945,0.08627754,38690.0,38685.0,0.09438555]
[1643750023546,0.08627754,38690.0,38684.0,0.129264]
[1643750023547,0.13627754,38690.0,38684.0,0.129264]
[1643750023746,0.13627754,38690.0,38683.0,0.01864694]
[1643750023946,0.186859,38689.0,38683.0,0.01864694]
[1643750024144,0.186859,38689.0,38684.0,0.01835675]
[1643750024145,2.0294163,38688.0,38684.0,0.01835675]
[1643750024345,0.286859,38687.0,38684.0,0.01835675]
[1643750024708,0.336859,38687.0,38684.0,0.01835675]
[1643750024904,0.336859,38687.0,38683.0,0.11200063]
[1643750025298,0.07629186,38684.0,38683.0,0.11200063]
[1643750025699,0.39179007,38690.0,38683.0,0.11200063]
[1643750025700,0.1,38689.0,38683.0,0.11200063]
[1643750025999,0.32714507,38690.0,38683.0,0.11200063]
[1643750026201,0.336859,38689.0,38683.0,0.11200063]
[1643750026400,0.286859,38689.0,38683.0,0.11200063]
[1643750027200,0.1,38689.0,38683.0,0.11200063]
[1643750027405,0.08540654,38686.0,38683.0,0.11200063]
[1643750028204,0.08540654,38686.0,38682.0,0.064641]
[1643750028447,0.08540654,38686.0,38680.0,0.15050513]
[1643750029148,0.19688043,38686.0,38680.0,0.15050513]
[1643750029348,0.19688043,38686.0,38680.0,0.02123113]
[1643750029552,0.51342898,38685.0,38680.0,0.02123113]
[1643750029750,0.61400407,38684.0,38679.0,0.02169824]
[1643750030053,0.32714507,38683.0,38679.0,0.02169824]
[1643750030250,0.286859,38682.0,38679.0,0.02169824]
[1643750030448,0.74146801,38680.0,38679.0,0.02169824]
[1643750030648,0.92832701,38680.0,38679.0,0.02169824]
[1643750030848,1.07832701,38680.0,38679.0,0.02169824]
[1643750031148,1.17002796,38680.0,38679.0,0.02169824]
[1643750031850,1.17002796,38680.0,38678.0,0.00129369]
[1643750032048,1.036859,38679.0,38674.0,0.01903866]
[1643750032304,1.10152,38679.0,38678.0,0.00129369]
[1643750032713,1.036859,38679.0,38678.0,0.00129369]
[1643750032905,1.086859,38679.0,38678.0,0.00129369]
[1643750033205,1.0,38678.0,38674.0,0.01903866]
[1643750033404,0.186859,38677.0,38674.0,0.01903866]
[1643750033603,0.129348,38676.0,38674.0,0.01903866]
[1643750033903,1.101533,38675.0,38674.0,0.01903866]
[1643750034103,1.151533,38675.0,38674.0,0.01903866]
[1643750034304,1.251533,38675.0,38674.0,0.01903866]
[1643750034910,0.064678,38672.0,38661.0,0.35413306]
[1643750035108,0.238559,38671.0,38661.0,0.35413306]
[1643750035311,0.388559,38671.0,38661.0,0.1226]
[1643750035511,0.388559,38671.0,38659.0,0.23153306]
[1643750035943,0.1031442,38668.0,38660.0,0.25418165]
[1643750036144,0.1531442,38668.0,38660.0,0.25418165]
[1643750036945,0.1531442,38668.0,38662.0,0.00144958]
[1643750037146,0.29477338,38667.0,38662.0,0.00144958]
[1643750037347,0.38986292,38667.0,38662.0,0.00144958]
[1643750037546,0.164681,38667.0,38662.0,0.00144958]
[1643750037748,0.39007533,38667.0,38662.0,0.00144958]
[1643750037951,0.164681,38667.0,38662.0,0.00144958]
[1643750038147,0.00343278,38660.0,38659.0,0.09847452]
[1643750038748,0.00343278,38660.0,38659.0,0.09347452]
[1643750038948,0.00343278,38660.0,38659.0,0.92113805]
[1643750039548,0.00343278,38660.0,38658.0,0.00614967]
[1643750040400,0.00343278,38660.0,38658.0,0.0047]
[1643750046151,0.00343278,38660.0,38658.0,0.069372]
[1643750046356,2.20724507,38681.0,38659.0,1.90061363]
[1643750046357,0.21602803,38674.0,38659.0,1.90061363]
[1643750046557,0.20439345,38675.0,38666.0,0.18477029]
[1643750046756,0.1239,38677.0,38666.0,0.18477029]
[1643750046757,0.186859,38674.0,38666.0,0.18477029]
[1643750046953,0.21460663,38677.0,38666.0,0.18477029]
[1643750047209,0.21460663,38677.0,38670.0,0.10029614]
[1643750047402,0.23361889,38679.0,38670.0,0.26866351]
[1643750047603,0.186859,38678.0,38670.0,0.26866351]
[1643750047803,0.20752619,38677.0,38673.0,0.00144936]
[1643750048002,0.186859,38676.0,38673.0,0.00144936]
[1643750048202,0.286859,38676.0,38673.0,0.00144936]
[1643750048505,0.55,38675.0,38670.0,0.16105889]
[1643750048701,0.186859,38674.0,38670.0,0.16105889]
[1643750049102,0.05,38675.0,38670.0,0.16105889]
[1643750049302,0.2791583,38678.0,38670.0,0.16105889]
[1643750049504,0.186859,38677.0,38668.0,0.064665]
[1643750049701,0.23467659,38676.0,38668.0,0.064665]
[1643750049901,0.186859,38675.0,38668.0,0.064665]
[1643750050604,0.37897685,38674.0,38667.0,0.02181587]
[1643750050806,0.1,38673.0,38667.0,0.02181587]
[1643750051061,0.40144307,38672.0,38667.0,0.02181587]
[1643750051255,0.1,38671.0,38667.0,0.02181587]
[1643750051456,0.38992622,38670.0,38667.0,0.02181587]
[1643750051755,0.1,38669.0,38664.0,0.21099699]
[1643750052055,0.0985648,38672.0,38664.0,0.21099699]
[1643750052254,0.12150696,38674.0,38664.0,0.21099699]
[1643750052255,0.3285908,38675.0,38664.0,0.27566799]
[1643750052655,0.1,38674.0,38666.0,0.00144768]
[1643750052855,0.20285002,38673.0,38666.0,0.00144768]
[1643750053154,0.20285002,38673.0,38670.0,0.1050064]
[1643750053155,0.25285002,38673.0,38670.0,0.1050064]
[1643750053355,0.186859,38672.0,38670.0,0.1050064]
[1643750054154,0.186859,38672.0,38670.0,0.39933028]
[1643750054358,0.1,38677.0,38670.0,0.39933028]
[1643750054557,0.00132356,38678.0,38670.0,0.39933028]
[1643750054802,0.21749695,38681.0,38670.0,0.39933028]
[1643750054997,0.00132366,38678.0,38671.0,0.0014476]
[1643750055199,0.00132366,38678.0,38676.0,0.11774031]
[1643750055396,0.186859,38677.0,38676.0,0.34644095]
[1643750055796,0.236859,38677.0,38676.0,0.34644095]
[1643750056196,0.186859,38677.0,38676.0,0.34644095]
[1643750056400,0.186859,38677.0,38676.0,0.11774031]
[1643750056597,0.236859,38677.0,38676.0,0.11774031]
[1643750056801,0.236859,38677.0,38671.0,0.00144764]
[1643750057199,0.08987701,38675.0,38670.0,0.15039913]
[1643750057403,0.05,38677.0,38673.0,0.26589692]
[1643750057597,0.286859,38676.0,38673.0,0.26589692]
[1643750057800,0.336859,38676.0,38671.0,0.09785888]
[1643750058446,0.336859,38676.0,38671.0,0.09641128]
[1643750058646,0.336859,38676.0,38671.0,0.09785887]
[1643750059049,0.236859,38676.0,38671.0,0.09785887]
[1643750059249,0.236859,38676.0,38671.0,0.00144759]
[1643750059647,0.236859,38676.0,38670.0,0.129308]
[1643750059849,0.236859,38676.0,38671.0,0.00144759]
[1643750060851,0.236859,38676.0,38668.0,0.1722]
[1643750060852,0.09492195,38672.0,38668.0,0.1722]
[1643750061052,0.09492195,38672.0,38671.0,0.00144759]
[1643750061953,0.09492195,38672.0,38667.0,0.129321]
[1643750061954,0.14492195,38672.0,38667.0,0.129321]
[1643750062206,0.14492195,38672.0,38670.0,0.00144761]
[1643750062400,0.586859,38671.0,38670.0,0.00144761]
[1643750062796,0.286859,38671.0,38670.0,0.00144761]
[1643750062995,0.286859,38671.0,38670.0,0.0007159]
[1643750063198,0.286859,38671.0,38663.0,0.129331]
[1643750063399,0.14492195,38672.0,38664.0,0.40741112]
[1643750063598,0.1,38671.0,38664.0,0.40741112]
[1643750063800,0.14492195,38672.0,38666.0,0.06467]
[1643750064501,0.064669,38674.0,38670.0,0.36700337]
[1643750064701,0.129341,38680.0,38670.0,0.36700337]
[1643750064702,0.00132539,38675.0,38670.0,0.36700337]
[1643750065500,0.00132539,38675.0,38668.0,0.064665]
[1643750065700,0.1680642,38676.0,38668.0,0.064665]
[1643750065947,0.00132551,38675.0,38668.0,0.06611177]
[1643750066350,0.00132551,38675.0,38670.0,0.01994693]
[1643750066650,0.186859,38674.0,38670.0,0.01994693]
[1643750066954,0.236859,38674.0,38670.0,0.01994693]
[1643750069051,0.05,38674.0,38670.0,0.01994693]
[1643750069705,0.00132549,38675.0,38671.0,0.11075359]
[1643750069899,0.186859,38674.0,38671.0,0.11075359]
[1643750070500,0.05,38674.0,38671.0,0.11075359]
[1643750070701,0.186859,38673.0,38671.0,0.11075359]
[1643750070898,0.00132551,38675.0,38671.0,0.11075359]
[1643750071099,0.186859,38674.0,38671.0,0.11075359]
[1643750071301,0.236859,38674.0,38671.0,0.11075359]
[1643750071900,0.236859,38674.0,38670.0,0.064662]
[1643750075462,0.236859,38674.0,38668.0,0.00144676]
[1643750075864,0.286859,38674.0,38668.0,0.00144676]
[1643750076264,0.61400407,38674.0,38668.0,0.00144676]
[1643750076464,0.61400407,38674.0,38665.0,0.114]
[1643750076765,0.23706104,38672.0,38668.0,0.00144675]
[1643750076965,0.251541,38671.0,38668.0,0.00144675]
[1643750077218,0.351541,38671.0,38668.0,0.00144675]
[1643750077408,0.67868607,38671.0,38668.0,0.00144675]
[1643750077608,1.3,38669.0,38659.0,0.06897]
[1643750077807,0.12937578,38667.0,38660.0,0.00578816]
[1643750078006,0.186859,38666.0,38660.0,0.00578816]
[1643750078207,0.0908446,38663.0,38660.0,0.00578816]
[1643750078408,0.26275941,38662.0,38660.0,0.00578816]
[1643750078607,0.31275941,38662.0,38660.0,0.00578816]
[1643750078808,0.41275941,38662.0,38658.0,0.0047]
[1643750079009,0.229376,38668.0,38658.0,0.069383]
[1643750079208,0.286859,38667.0,38658.0,0.069383]
[1643750079608,0.064684,38666.0,38658.0,0.0047]
[1643750079814,0.186859,38665.0,38658.0,0.0047]
[1643750080008,0.10390911,38662.0,38658.0,0.0047]
[1643750080208,0.15390911,38662.0,38660.0,0.00144509]
[1643750080408,0.186859,38661.0,38660.0,0.00144509]
[1643750080811,0.286859,38661.0,38660.0,0.00144509]
[1643750081247,0.286859,38661.0,38658.0,0.0047]
[1643750081450,0.286859,38661.0,38659.0,0.00144511]
[1643750082546,0.286859,38661.0,38658.0,0.0047]
[1643750082747,0.336859,38661.0,38658.0,0.00614512]
[1643750083148,0.40155,38661.0,38658.0,0.00614512]
[1643750083550,0.40155,38661.0,38658.0,0.0047]
[1643750083750,0.336859,38661.0,38658.0,0.0047]
[1643750083950,0.336859,38661.0,38658.0,0.00614361]
[1643750084551,0.15,38661.0,38658.0,0.00614361]
[1643750084806,0.05,38661.0,38658.0,0.0047]
[1643750085007,0.1,38661.0,38658.0,0.00614361]
[1643750085202,0.09957,38661.0,38658.0,0.00614361]
[1643750086007,0.17479997,38669.0,38658.0,0.0047]
[1643750086208,0.186859,38668.0,38659.0,0.064681]
[1643750086409,0.186859,38668.0,38658.0,0.00614361]
[1643750086608,0.186859,38669.0,38658.0,0.00614361]
[1643750086808,0.36165897,38669.0,38658.0,0.00614361]
[1643750087008,0.11627116,38668.0,38658.0,0.00614361]
[1643750087208,0.09680786,38662.0,38658.0,0.0047]
[1643750087409,0.09680786,38662.0,38661.0,0.00144354]
[1643750087613,0.28366686,38662.0,38661.0,0.00144354]
[1643750087810,0.33366686,38662.0,38661.0,0.00144354]
[1643750088209,0.43366686,38662.0,38661.0,0.00144354]
[1643750088446,0.43366686,38662.0,38658.0,0.0047]
[1643750088647,0.1,38661.0,38660.0,0.00144357]
[1643750088847,0.286859,38661.0,38660.0,0.00144357]
[1643750089746,0.286859,38661.0,38658.0,0.0047]
[1643750089950,0.286859,38661.0,38659.0,0.00144359]
[1643750089951,0.1,38661.0,38659.0,0.00144359]
[1643750090348,0.114688,38663.0,38659.0,0.00144359]
[1643750090551,0.186859,38662.0,38659.0,0.00144359]
[1643750090750,0.20469266,38661.0,38659.0,0.00144359]
[1643750090954,0.20469266,38661.0,38658.0,0.0047]
[1643750090955,0.186859,38660.0,38658.0,0.0047]
[1643750091151,0.301553,38660.0,38659.0,0.00144359]
[1643750091350,0.401553,38660.0,38659.0,0.00144359]
[1643750091751,0.351553,38660.0,38659.0,0.00144359]
[1643750092205,0.0810566,38659.0,38658.0,0.00614361]
[1643750092401,0.2679156,38659.0,38658.0,0.00614361]
[1643750093000,0.39371215,38659.0,38658.0,0.00614361]
[1643750093304,0.54371215,38659.0,38658.0,0.0047]
[1643750094302,0.54371215,38659.0,38658.0,0.00432653]
[1643750094702,0.49371215,38659.0,38658.0,0.00432653]
[1643750095952,0.286859,38659.0,38658.0,0.00432653]
[1643750096553,0.186859,38659.0,38658.0,0.00432653]
[1643750098251,0.39499099,38659.0,38658.0,0.00432653]
[1643750098452,0.186859,38659.0,38658.0,0.00432653]
[1643750098653,0.39082743,38659.0,38658.0,0.00432653]
[1643750098852,0.38999347,38659.0,38658.0,0.00432653]
[1643750099898,0.3891992,38659.0,38658.0,0.00432653]
[1643750100300,0.4891992,38659.0,38658.0,0.00432653]
[1643750100899,0.5391992,38659.0,38658.0,0.00432653]
[1643750101301,0.4891992,38659.0,38658.0,0.00432653]
[1643750103003,0.286859,38659.0,38658.0,0.00432653]
[1643750103207,0.064694,38660.0,38658.0,0.00432653]
[1643750103455,0.186859,38659.0,38658.0,0.00432653]
[1643750104658,0.1,38661.0,38658.0,0.00432653]
[1643750105058,0.20297458,38662.0,38658.0,0.00432653]
[1643750105260,0.20984146,38670.0,38658.0,0.00432653]
[1643750105460,0.17480723,38671.0,38658.0,0.05747014]
[1643750105658,0.00132578,38672.0,38658.0,0.05747014]
[1643750105659,0.00132578,38672.0,38669.0,0.10973419]
[1643750105864,0.186859,38671.0,38669.0,0.10973419]
[1643750106060,0.38861509,38671.0,38669.0,0.10973419]
[1643750106258,0.186859,38671.0,38669.0,0.10973419]
[1643750106759,0.186859,38671.0,38666.0,0.00144348]
[1643750107399,0.236859,38671.0,38666.0,0.00144348]
[1643750107599,0.20192107,38670.0,38662.0,0.1014571]
[1643750107801,0.20192107,38670.0,38666.0,0.00144345]
[1643750107802,0.0825663,38668.0,38666.0,0.00144345]
[1643750107998,0.94042982,38667.0,38666.0,0.00144345]
[1643750108200,0.39042982,38667.0,38666.0,0.00144345]
[1643750108601,0.186859,38667.0,38666.0,0.00144345]
[1643750108803,0.186859,38667.0,38659.0,0.129349]
[1643750108804,0.3977161,38667.0,38659.0,0.129349]
[1643750109002,0.3977161,38667.0,38665.0,0.00144347]
[1643750109301,0.20326989,38666.0,38665.0,0.00144347]
[1643750109500,0.39012889,38666.0,38665.0,0.00144347]
[1643750109802,0.186859,38666.0,38665.0,0.00144347]
[1643750110001,0.05,38668.0,38664.0,0.27726958]
[1643750110202,0.05,38668.0,38664.0,0.27871307]
[1643750110401,0.05,38669.0,38664.0,0.27871307]
[1643750110603,0.05,38669.0,38666.0,0.06467]
[1643750110803,0.00132598,38672.0,38666.0,0.06467]
[1643750111060,0.236859,38671.0,38666.0,0.06467]
[1643750111255,0.236859,38671.0,38670.0,0.28184026]
[1643750111457,0.43864298,38671.0,38666.0,0.00144346]
[1643750111654,0.236859,38671.0,38666.0,0.00144346]
[1643750112056,0.186859,38671.0,38669.0,0.07361215]
[1643750112256,0.186859,38671.0,38669.0,0.13827615]
[1643750112456,0.4928,38677.0,38669.0,0.13827615]
[1643750112661,0.129328,38683.0,38670.0,0.0517]
[1643750112662,0.00132613,38672.0,38670.0,0.0517]
[1643750112859,0.00132613,38672.0,38671.0,1.81122655]
[1643750113057,0.00132613,38672.0,38671.0,2.24009787]
[1643750113358,0.00108183,38672.0,38671.0,2.30475087]
[1643750113761,0.3731,38685.0,38673.0,0.064644]
[1643750113960,0.29255458,38687.0,38674.0,0.26298212]
[1643750114157,0.01874847,38684.0,38674.0,0.26298212]
[1643750114356,0.01874847,38684.0,38675.0,0.0517]
[1643750114555,0.01874847,38684.0,38682.0,0.26620154]
[1643750114804,0.01874847,38684.0,38683.0,0.09234584]
[1643750115208,0.01874847,38684.0,38683.0,0.44234584]
[1643750116202,0.064641,38691.0,38683.0,0.44234584]
[1643750116203,0.00066461,38685.0,38683.0,0.44234584]
[1643750117210,0.1,38693.0,38684.0,0.06464]
[1643750117413,0.001328,38686.0,38684.0,0.06464]
[1643750118455,0.24425735,38694.0,38684.0,0.06464]
[1643750118655,0.001328,38687.0,38684.0,0.06464]
[1643750119756,0.15,38693.0,38690.0,0.11047912]
[1643750119958,0.186859,38692.0,38690.0,0.11047912]
[1643750120155,0.186859,38692.0,38690.0,0.11009243]
[1643750123910,0.151328,38693.0,38690.0,0.11009243]
[1643750124315,0.001328,38693.0,38690.0,0.11009243]
[1643750124516,0.18419514,38699.0,38691.0,0.22269739]
[1643750124517,0.002,38699.0,38691.0,0.22269739]
[1643750124717,0.001328,38693.0,38691.0,0.27439739]
[1643750125014,0.001328,38693.0,38692.0,0.7768575]
[1643750125213,0.001328,38693.0,38692.0,0.92240259]
[1643750125515,0.001328,38693.0,38692.0,0.97240259]
[1643750125713,0.002,38699.0,38692.0,0.97240259]
[1643750125957,0.002,38699.0,38697.0,0.42090962]
[1643750127457,0.002,38699.0,38697.0,0.12282636]
[1643750128558,0.002,38699.0,38697.0,0.36009939]
[1643750130310,0.002,38699.0,38698.0,0.05]
[1643750130710,0.002,38699.0,38698.0,0.1]
[1643750132711,0.002,38699.0,38698.0,0.32395545]
[1643750132911,0.002,38699.0,38698.0,0.1]
[1643750134151,0.002,38699.0,38698.0,0.448338]
[1643750136052,0.002,38699.0,38698.0,0.67067162]
[1643750136651,0.002,38699.0,38698.0,0.448338]
[1643750136852,0.002,38699.0,38698.0,0.67730221]
[1643750137500,0.002,38699.0,38698.0,0.32896421]
[1643750138001,0.002,38699.0,38698.0,0.1]
[1643750138400,0.002,38699.0,38698.0,0.1517]
[1643750138900,0.002,38699.0,38698.0,0.37406774]
[1643750139101,0.002,38699.0,38698.0,0.1517]
[1643750141465,0.002,38699.0,38698.0,0.38112458]
[1643750141664,0.002,38699.0,38698.0,0.72946258]
[1643750142064,0.002,38699.0,38698.0,0.38112458]
[1643750142264,0.002,38699.0,38698.0,0.1517]
[1643750142468,0.00191611,38699.0,38698.0,0.37216836]
[1643750142665,0.00191611,38699.0,38698.0,0.3743196]
[1643750142868,0.00191611,38699.0,38698.0,0.1517]
[1643750145106,0.00191611,38699.0,38698.0,0.500038]
[1643750147106,0.00191611,38699.0,38698.0,0.1517]
[1643750147907,0.00191611,38699.0,38698.0,0.15148929]
[1643750148308,0.00191611,38699.0,38698.0,0.1017]
[1643750148551,0.00191611,38699.0,38698.0,0.15148929]
[1643750150154,0.002,38701.0,38699.0,1.3]
[1643750150155,0.001,38701.0,38699.0,1.3]
[1643750150469,0.001,38707.0,38700.0,1.8789062]
[1643750150763,0.001,38707.0,38704.0,1.2]
[1643750150955,0.001,38707.0,38705.0,0.348338]
[1643750151155,0.001,38707.0,38705.0,0.64723916]
[1643750151354,0.001,38707.0,38706.0,0.13954936]
[1643750151554,0.001,38707.0,38706.0,0.48788736]
[1643750152621,0.003,38710.0,38706.0,0.48788736]
[1643750152823,0.001,38712.0,38707.0,0.348338]
[1643750153422,0.00066824,38711.0,38707.0,0.348338]
[1643750153822,0.00066824,38711.0,38709.0,0.04978929]
[1643750154024,0.00066824,38711.0,38710.0,0.648338]
[1643750154421,0.001,38712.0,38710.0,0.348338]
[1643750154722,0.00232982,38712.0,38710.0,0.348338]
[1643750154924,0.00232982,38712.0,38709.0,0.04978929]
[1643750155627,0.001,38712.0,38709.0,0.04978929]
[1643750155824,0.00232982,38712.0,38709.0,0.04978929]
[1643750156061,0.00232982,38712.0,38710.0,0.05]
[1643750156863,0.001,38712.0,38710.0,0.05]
[1643750158273,0.001,38712.0,38705.0,0.40327188]
[1643750158274,0.01985921,38709.0,38706.0,0.17465884]
[1643750158469,0.001,38712.0,38708.0,1.3]
[1643750158766,0.001,38712.0,38709.0,0.400038]
[1643750158967,0.0153185,38719.0,38711.0,1.3]
[1643750159165,0.0153185,38719.0,38712.0,0.70263891]
[1643750159468,0.01,38719.0,38713.0,0.0517]
[1643750159711,0.01,38719.0,38714.0,0.17773268]
[1643750161107,0.01,38719.0,38713.0,0.0517]
[1643750162007,0.01,38719.0,38713.0,0.19101974]
[1643750163653,0.01,38719.0,38713.0,0.19012018]
[1643750164054,0.006,38719.0,38713.0,0.19012018]
[1643750164256,0.00133,38716.0,38713.0,0.19012018]
[1643750165253,0.006,38719.0,38714.0,0.56627351]
[1643750165456,0.00133,38716.0,38714.0,0.56627351]
[1643750165654,0.00133,38716.0,38715.0,1.22136617]
[1643750165857,0.00133,38716.0,38715.0,1.56970417]
[1643750166456,0.006,38719.0,38715.0,1.56970417]
[1643750166655,0.006,38719.0,38716.0,0.348338]
[1643750166656,0.00133,38717.0,38716.0,0.348338]
[1643750167603,0.006,38719.0,38714.0,0.348338]
[1643750167804,0.00133,38718.0,38714.0,0.348338]
[1643750168504,0.00133,38718.0,38715.0,0.22053663]
[1643750168708,0.00133,38718.0,38716.0,0.348338]
[1643750168904,0.006,38719.0,38716.0,0.348338]
[1643750169105,0.00133,38718.0,38716.0,0.348338]
[1643750170108,0.006,38719.0,38716.0,0.348338]
[1643750170307,0.00133,38719.0,38718.0,1.3]